fUSD/lending_fUSD_20251001
["ID","MTS","AMOUNT","RATE_DAILY","PERIOD"]
[388788173,1759361451867,-1189.65,0.00021917,2]
[388788174,1759361451875,-500.0,0.00021917,2]
[388788175,1759361451885,-653.6,0.00021917,2]
[388788176,1759361451894,-531.18,0.00021917,2]
[388788177,1759361451905,-500.0,0.00021917,2]
[388788178,1759361451914,-500.0,0.00021917,2]
[388788179,1759361451923,-3136.62,0.00021917,2]
[388788180,1759361451932,-500.0,0.00021917,2]
[388788181,1759361451941,-5380.77,0.00021917,2]
[388788182,1759361451950,-777.57,0.00021917,2]
[388788183,1759361451959,-2451.72,0.00021917,2]
[388788184,1759361451968,-598.88,0.00021917,2]
[388788185,1759361451977,-500.0,0.00021917,2]
[388788186,1759361451986,-2009.18,0.00021917,2]
[388788187,1759361451995,-500.0,0.00021917,2]
[388788188,1759361452004,-500.0,0.00021917,2]
[388788189,1759361452013,-659.47,0.00021917,2]
[388788190,1759361452023,-402.41880977,0.00021917,2]
[388788191,1759361452032,-1282.84,0.00021917,2]
[388788192,1759361452042,-500.0,0.00021917,2]
[388788193,1759361452051,-1115.89,0.00021917,2]
[388788194,1759361452060,-2490.33,0.00021917,2]
[388788195,1759361452069,-1517.13,0.00021917,2]
[388788196,1759361452078,-613.48,0.00021917,2]
[388788197,1759361452087,-151.0,0.00021917,2]
[388788198,1759361452095,-2014.67,0.00021917,2]
[388788199,1759361452105,-151.0,0.00021917,2]
[388788200,1759361452114,-500.0,0.00021917,2]
[388788201,1759361452123,-500.0,0.00021917,2]
[388788202,1759361452132,-151.0,0.00021917,2]
[388788203,1759361452142,-500.0,0.00021917,2]
[388788204,1759361452151,-153.496872,0.00021917,2]
[388788205,1759361452160,-631.84,0.00021917,2]
[388788206,1759361452170,-2254.85,0.00021917,2]
[388788207,1759361452180,-151.0,0.00021917,2]
[388788208,1759361452190,-151.0,0.00021917,2]
[388788209,1759361452200,-500.0,0.00021917,2]
[388788210,1759361452212,-1770.76,0.00021917,2]
[388788211,1759361452221,-151.0,0.00021917,2]
[388788212,1759361452230,-3474.83,0.00021917,2]
[388788213,1759361452239,-692.21,0.00021917,2]
[388788214,1759361452248,-471.17062664,0.00021917,2]
[388788215,1759361452258,-2618.3,0.00021917,2]
[388788216,1759361452267,-1785.49,0.00021917,2]
[388788217,1759361452275,-151.0,0.00021917,2]
[388788218,1759361452284,-620.01,0.00021917,2]
[388788219,1759361452294,-151.0,0.00021917,2]
[388788220,1759361452303,-500.0,0.00021917,2]
[388788221,1759361452312,-500.0,0.00021917,2]
[388788222,1759361452321,-500.0,0.00021917,2]
[388788223,1759361452330,-5996.45,0.00021917,2]
[388788224,1759361452339,-500.0,0.00021917,2]
[388788225,1759361452348,-151.0,0.00021917,2]
[388788226,1759361452357,-2195.35,0.00021917,2]
[388788227,1759361452366,-151.0,0.00021917,2]
[388788228,1759361452376,-500.0,0.00021917,2]
[388788229,1759361452384,-154.29582,0.00021917,2]
[388788230,1759361452393,-500.0,0.00021917,2]
[388788231,1759361452402,-808.58,0.00021917,2]
[388788232,1759361452411,-1675.0,0.00021917,2]
[388788233,1759361452420,-500.0,0.00021917,2]
[388788234,1759361452430,-1970.17,0.00021917,2]
[388788235,1759361452439,-500.0,0.00021917,2]
[388788236,1759361452448,-500.0,0.00021917,2]
[388788237,1759361452457,-1215.27,0.00021917,2]
[388788238,1759361452466,-500.0,0.00021917,2]
[388788239,1759361452475,-2289.62,0.00021917,2]
[388788240,1759361452485,-727.82,0.00021917,2]
[388788241,1759361452494,-500.0,0.00021917,2]
[388788242,1759361452503,-500.0,0.00021917,2]
[388788243,1759361452513,-500.0,0.00021917,2]
[388788244,1759361452522,-500.0,0.00021917,2]
[388788245,1759361452531,-500.0,0.00021917,2]
[388788246,1759361452540,-2652.54,0.00021917,2]
[388788247,1759361452549,-3035.2,0.00021917,2]
[388788248,1759361452558,-500.0,0.00021917,2]
[388788249,1759361452567,-2079.06,0.00021917,2]
[388788250,1759361452577,-569.78,0.00021917,2]
[388788251,1759361452587,-500.0,0.00021917,2]
[388788252,1759361452596,-1054.97,0.00021917,2]
[388788253,1759361452605,-500.0,0.00021917,2]
[388788254,1759361452614,-2734.76,0.00021917,2]
[388788255,1759361452623,-500.0,0.00021917,2]
[388788256,1759361452633,-500.0,0.00021917,2]
[388788257,1759361452641,-500.0,0.00021917,2]
[388788258,1759361452650,-500.0,0.00021917,2]
[388788259,1759361452659,-3162.1,0.00021917,2]
[388788260,1759361452668,-500.0,0.00021917,2]
[388788261,1759361452678,-827.62,0.00021917,2]
[388788262,1759361452687,-1969.11,0.00021917,2]
[388788263,1759361452696,-1375.28,0.00021917,2]
[388788264,1759361452705,-500.0,0.00021917,2]
[388788265,1759361452714,-500.0,0.00021917,2]
[388788266,1759361452723,-1097.67,0.00021917,2]
[388788267,1759361452732,-5667.41,0.00021917,2]
[388788268,1759361452741,-1769.97,0.00021917,2]
[388788269,1759361452751,-563.08,0.00021917,2]
[388788270,1759361452760,-500.0,0.00021917,2]
[388788271,1759361452769,-571.42,0.00021917,2]
[388788272,1759361452779,-500.0,0.00021917,2]
[388788273,1759361452788,-500.0,0.00021917,2]
[388788274,1759361452797,-2719.9,0.00021917,2]
[388788275,1759361452806,-151.0,0.00021917,2]
[388788276,1759361452815,-3002.82,0.00021917,2]
[388788277,1759361452824,-1737.43,0.00021917,2]
[388788278,1759361452833,-500.0,0.00021917,2]
[388788279,1759361452842,-500.0,0.00021917,2]
[388788280,1759361452851,-582.7,0.00021917,2]
[388788281,1759361452860,-2161.9,0.00021917,2]
[388788282,1759361452869,-500.0,0.00021917,2]
[388788283,1759361452877,-951.9,0.00021917,2]
[388788284,1759361452886,-1748.72,0.00021917,2]
[388788285,1759361452895,-500.0,0.00021917,2]
[388788286,1759361452906,-2620.35,0.00021917,2]
[388788287,1759361452916,-500.0,0.00021917,2]
[388788288,1759361452925,-1221.52,0.00021917,2]
[388788289,1759361452934,-2223.68,0.00021917,2]
[388788290,1759361452943,-151.0,0.00021917,2]
[388788291,1759361452954,-500.0,0.00021917,2]
[388788292,1759361452963,-151.0,0.00021917,2]
[388788293,1759361452972,-177.258208,0.00021917,2]
[388788294,1759361452982,-500.0,0.00021917,2]
[388788295,1759361452991,-151.0,0.00021917,2]
[388788296,1759361453000,-1747.09,0.00021917,2]
[388788297,1759361453009,-2243.83,0.00021917,2]
[388788298,1759361453019,-151.766357,0.00021917,2]
[388788299,1759361453027,-500.0,0.00021917,2]
[388788300,1759361453037,-500.0,0.00021917,2]
[388788301,1759361453046,-500.0,0.00021917,2]
[388788302,1759361453055,-899.92,0.00021917,2]
[388788303,1759361453065,-1012.38,0.00021917,2]
[388788304,1759361453074,-500.0,0.00021917,2]
[388788305,1759361453083,-500.0,0.00021917,2]
[388788306,1759361453092,-151.0,0.00021917,2]
[388788307,1759361453101,-2511.45,0.00021917,2]
[388788308,1759361453110,-151.0,0.00021917,2]
[388788309,1759361453120,-500.0,0.00021917,2]
[388788310,1759361453129,-203.306704,0.00021917,2]
[388788311,1759361453139,-151.0,0.00021917,2]
[388788312,1759361453148,-151.0,0.00021917,2]
[388788313,1759361453158,-172.248032,0.00021917,2]
[388788314,1759361453167,-151.0,0.00021917,2]
[388788315,1759361453177,-736.84,0.00021917,2]
[388788316,1759361453186,-151.0,0.00021917,2]
[388788317,1759361453196,-151.0,0.00021917,2]
[388788318,1759361453205,-151.0,0.00021917,2]
[388788319,1759361453343,-151.0,0.00021917,2]
[388788320,1759361453354,-151.0,0.00021917,2]
[388788321,1759361453364,-151.0,0.00021917,2]
[388788322,1759361453374,-248.597519,0.00021917,2]
[388788323,1759361453384,-947.46,0.00021917,2]
[388788324,1759361453394,-3455.1,0.00021917,2]
[388788325,1759361453404,-1611.24,0.00021917,2]
[388788326,1759361453413,-151.0,0.00021917,2]
[388788327,1759361453423,-500.0,0.00021917,2]
[388788328,1759361453432,-151.0,0.00021917,2]
[388788329,1759361453442,-2902.82,0.00021917,2]
[388788330,1759361453452,-151.0,0.00021917,2]
[388788331,1759361453462,-500.0,0.00021917,2]
[388788332,1759361453472,-2041.97,0.00021917,2]
[388788333,1759361453481,-388.12575107,0.00021917,2]
[388788334,1759361453491,-2534.79,0.00021917,2]
[388788335,1759361453502,-500.0,0.00021917,2]
[388788336,1759361453512,-500.0,0.00021917,2]
[388788337,1759361453521,-500.0,0.00021917,2]
[388788338,1759361453531,-500.0,0.00021917,2]
[388788339,1759361453540,-2103.63,0.00021917,2]
[388788340,1759361453553,-500.0,0.00021917,2]
[388788341,1759361453562,-500.0,0.00021917,2]
[388788342,1759361453572,-500.0,0.00021917,2]
[388788343,1759361453581,-1434.77,0.00021917,2]
[388788344,1759361453591,-505.51,0.00021917,2]
[388788345,1759361453601,-500.0,0.00021917,2]
[388788346,1759361453611,-500.0,0.00021917,2]
[388788347,1759361453621,-151.0,0.00021917,2]
[388788348,1759361453631,-151.0,0.00021917,2]
[388788349,1759361453641,-151.0,0.00021917,2]
[388788350,1759361453650,-500.0,0.00021917,2]
[388788351,1759361453660,-500.0,0.00021917,2]
[388788352,1759361453669,-500.0,0.00021917,2]
[388788353,1759361453679,-1591.59,0.00021917,2]
[388788354,1759361453689,-500.0,0.00021917,2]
[388788355,1759361453699,-500.0,0.00021917,2]
[388788356,1759361453708,-500.0,0.00021917,2]
[388788357,1759361453718,-500.0,0.00021917,2]
[388788358,1759361453727,-912.22,0.00021917,2]
[388788359,1759361453737,-1456.5,0.00021917,2]
[388788360,1759361453747,-500.0,0.00021917,2]
[388788361,1759361453756,-500.0,0.00021917,2]
[388788362,1759361453766,-500.0,0.00021917,2]
[388788363,1759361453775,-1524.64,0.00021917,2]
[388788364,1759361453785,-500.0,0.00021917,2]
[388788365,1759361453795,-2229.57,0.00021917,2]
[388788366,1759361453804,-500.0,0.00021917,2]
[388788367,1759361453814,-2259.59,0.00021917,2]
[388788368,1759361453823,-500.0,0.00021917,2]
[388788369,1759361453833,-2650.35,0.00021917,2]
[388788370,1759361453842,-500.0,0.00021917,2]
[388788371,1759361453851,-1940.61,0.00021917,2]
[388788372,1759361453861,-500.0,0.00021917,2]
[388788373,1759361453871,-500.0,0.00021917,2]
[388788374,1759361453880,-500.0,0.00021917,2]
[388788375,1759361453890,-500.0,0.00021917,2]
[388788376,1759361453899,-1794.43,0.00021917,2]
[388788377,1759361453908,-500.0,0.00021917,2]
[388788378,1759361453918,-1285.49,0.00021917,2]
[388788379,1759361453927,-1366.26,0.00021917,2]
[388788380,1759361453936,-182.10092792,0.00021917,2]
[388788381,1759361453946,-500.0,0.00021917,2]
[388788382,1759361453955,-500.0,0.00021917,2]
[388788383,1759361453964,-500.0,0.00021917,2]
[388788384,1759361453974,-1705.36,0.00021917,2]
[388788385,1759361453983,-500.0,0.00021917,2]
[388788386,1759361453992,-500.0,0.00021917,2]
[388788387,1759361454002,-1109.42,0.00021917,2]
[388788388,1759361454011,-500.0,0.00021917,2]
[388788389,1759361454020,-1353.83,0.00021917,2]
[388788390,1759361454029,-500.0,0.00021917,2]
[388788391,1759361454039,-500.0,0.00021917,2]
[388788392,1759361454050,-500.52668683,0.00021917,2]
[388788393,1759361454060,-500.0,0.00021917,2]
[388788394,1759361454069,-870.03,0.00021917,2]
[388788395,1759361454079,-6027.75,0.00021917,2]
[388788396,1759361454088,-1381.33,0.00021917,2]
[388788397,1759361454098,-500.0,0.00021917,2]
[388788398,1759361454108,-1308.9,0.00021917,2]
[388788399,1759361454118,-500.0,0.00021917,2]
[388788400,1759361454127,-500.0,0.00021917,2]
[388788401,1759361454136,-500.0,0.00021917,2]
[388788402,1759361454146,-500.0,0.00021917,2]
[388788403,1759361454156,-500.0,0.00021917,2]
[388788404,1759361454165,-500.0,0.00021917,2]
[388788405,1759361454175,-1022.04,0.00021917,2]
[388788406,1759361454184,-500.0,0.00021917,2]
[388788407,1759361454194,-169.582902,0.00021917,2]
[388788408,1759361454203,-476.610521,0.00021917,2]
[388788409,1759361454213,-500.0,0.00021917,2]
[388788410,1759361454223,-500.0,0.00021917,2]
[388788411,1759361454232,-643.8435035,0.00021917,2]
[388788412,1759361454242,-500.0,0.00021917,2]
[388788413,1759361454252,-500.0,0.00021917,2]
[388788414,1759361454261,-198.140906,0.00021917,2]
[388788415,1759361454271,-4549.67,0.00021917,2]
[388788416,1759361454280,-500.0,0.00021917,2]
[388788417,1759361454290,-602.95,0.00021917,2]
[388788418,1759361454300,-960.59,0.00021917,2]
[388788419,1759361454310,-500.0,0.00021917,2]
[388788420,1759361454320,-500.0,0.00021917,2]
[388788421,1759361454329,-500.0,0.00021917,2]
[388788422,1759361454340,-1050.57,0.00021917,2]
[388788423,1759361454349,-578.9,0.00021917,2]
[388788424,1759361454359,-1352.6,0.00021917,2]
[388788425,1759361454369,-500.0,0.00021917,2]
[388788426,1759361454378,-500.0,0.00021917,2]
[388788427,1759361454388,-500.0,0.00021917,2]
[388788428,1759361454398,-500.0,0.00021917,2]
[388788429,1759361454407,-1142.47,0.00021917,2]
[388788430,1759361454417,-500.0,0.00021917,2]
[388788431,1759361454426,-500.0,0.00021917,2]
[388788432,1759361454436,-684.6,0.00021917,2]
[388788433,1759361454445,-671.28,0.00021917,2]
[388788434,1759361454455,-2923.25,0.00021917,2]
[388788435,1759361454464,-500.0,0.00021917,2]
[388788436,1759361454474,-1813.29,0.00021917,2]
[388788437,1759361454484,-500.0,0.00021917,2]
[388788438,1759361454493,-664.24,0.00021917,2]
[388788439,1759361454502,-500.0,0.00021917,2]
[388788440,1759361454511,-788.75,0.00021917,2]
[388788441,1759361454520,-500.0,0.00021917,2]
[388788442,1759361454529,-500.0,0.00021917,2]
[388788443,1759361454538,-500.0,0.00021917,2]
[388788444,1759361454548,-500.0,0.00021917,2]
[388788445,1759361454557,-500.0,0.00021917,2]
[388788446,1759361454568,-2117.68,0.00021917,2]
[388788447,1759361454577,-232.99452215,0.00021917,2]
[388788448,1759361454586,-500.0,0.00021917,2]
[388788449,1759361454595,-500.0,0.00021917,2]
[388788450,1759361454605,-1230.76,0.00021917,2]
[388788451,1759361454614,-1016.65,0.00021917,2]
[388788452,1759361454623,-500.0,0.00021917,2]
[388788453,1759361454633,-778.21,0.00021917,2]
[388788454,1759361454642,-993.08,0.00021917,2]
[388788455,1759361454652,-500.0,0.00021917,2]
[388788456,1759361454661,-500.0,0.00021917,2]
[388788457,1759361454671,-151.0,0.00021917,2]
[388788458,1759361454681,-161.64607563,0.00021917,2]
[388788459,1759361454690,-500.0,0.00021917,2]
[388788460,1759361454699,-620.64,0.00021917,2]
[388788461,1759361454708,-500.0,0.00021917,2]
[388788462,1759361454717,-500.0,0.00021917,2]
[388788463,1759361454726,-500.0,0.00021917,2]
[388788464,1759361454736,-500.0,0.00021917,2]
[388788465,1759361454745,-1841.75,0.00021917,2]
[388788466,1759361454755,-500.0,0.00021917,2]
[388788467,1759361454764,-500.0,0.00021917,2]
[388788468,1759361454773,-500.0,0.00021917,2]
[388788469,1759361454782,-1112.72,0.00021917,2]
[388788470,1759361454791,-500.0,0.00021917,2]
[388788471,1759361454800,-500.0,0.00021917,2]
[388788472,1759361454810,-500.0,0.00021917,2]
[388788473,1759361454819,-500.0,0.00021917,2]
[388788474,1759361454828,-500.0,0.00021917,2]
[388788475,1759361454837,-151.0,0.00021917,2]
[388788476,1759361454846,-1072.19,0.00021917,2]
[388788477,1759361454855,-1838.37,0.00021917,2]
[388788478,1759361454865,-946.06,0.00021917,2]
[388788479,1759361454874,-1307.69,0.00021917,2]
[388788480,1759361454883,-151.0,0.00021917,2]
[388788481,1759361454892,-500.0,0.00021917,2]
[388788482,1759361454903,-500.0,0.00021917,2]
[388788483,1759361454913,-1482.84,0.00021917,2]
[388788484,1759361454922,-2003.96,0.00021917,2]
[388788485,1759361454932,-1027.58,0.00021917,2]
[388788486,1759361454943,-543.73,0.00021917,2]
[388788487,1759361454953,-944.45,0.00021917,2]
[388788488,1759361454962,-500.0,0.00021917,2]
[388788489,1759361454971,-500.0,0.00021917,2]
[388788490,1759361454983,-6542.74,0.00021917,2]
[388788491,1759361454992,-397.85099937,0.00021917,2]
[388788492,1759361455001,-665.87,0.00021917,2]
[388788493,1759361455011,-1025.49,0.00021917,2]
[388788494,1759361455020,-1822.15,0.00021917,2]
[388788495,1759361455030,-500.0,0.00021917,2]
[388788496,1759361455039,-1307.83,0.00021917,2]
[388788497,1759361455048,-500.0,0.00021917,2]
[388788498,1759361455058,-439.4381259,0.00021917,2]
[388788499,1759361455067,-500.0,0.00021917,2]
[388788500,1759361455076,-500.0,0.00021917,2]
[388788501,1759361455085,-545.8,0.00021917,2]
[388788502,1759361455095,-1299.48,0.00021917,2]
[388788503,1759361455104,-515.54010867,0.00021917,2]
[388788504,1759361455113,-698.85,0.00021917,2]
[388788505,1759361455122,-500.0,0.00021917,2]
[388788506,1759361455131,-500.0,0.00021917,2]
[388788507,1759361455140,-2228.92,0.00021917,2]
[388788508,1759361455149,-884.78,0.00021917,2]
[388788509,1759361455159,-500.0,0.00021917,2]
[388788510,1759361455168,-2223.98,0.00021917,2]
[388788511,1759361455177,-500.0,0.00021917,2]
[388788512,1759361455187,-1462.97,0.00021917,2]
[388788513,1759361455196,-1285.71,0.00021917,2]
[388788514,1759361455205,-151.0,0.00021917,2]
[388788515,1759361455215,-151.0,0.00021917,2]
[388788516,1759361455224,-151.0,0.00021917,2]
[388788517,1759361455233,-500.0,0.00021917,2]
[388788518,1759361455243,-500.0,0.00021917,2]
[388788519,1759361455252,-1710.19,0.00021917,2]
[388788520,1759361455262,-500.0,0.00021917,2]
[388788521,1759361455271,-300.0,0.00021917,2]
[388788522,1759361455280,-500.0,0.00021917,2]
[388788523,1759361455289,-824.1,0.00021917,2]
[388788524,1759361455299,-798.23,0.00021917,2]
[388788525,1759361455307,-501.57,0.00021917,2]
[388788526,1759361455317,-1618.25,0.00021917,2]
[388788527,1759361455326,-1765.58,0.00021917,2]
[388788528,1759361455336,-500.0,0.00021917,2]
[388788529,1759361455345,-527.26,0.00021917,2]
[388788530,1759361455355,-1305.23,0.00021917,2]
[388788531,1759361455364,-5999.3,0.00021917,2]
[388788532,1759361455373,-2628.12,0.00021917,2]
[388788533,1759361455383,-500.0,0.00021917,2]
[388788534,1759361455392,-500.0,0.00021917,2]
[388788535,1759361455712,-525.61,0.00021917,2]
[388788536,1759361455722,-500.0,0.00021917,2]
[388788537,1759361455732,-2392.43,0.00021917,2]
[388788538,1759361455741,-500.0,0.00021917,2]
[388788539,1759361455750,-500.0,0.00021917,2]
[388788540,1759361455759,-2843.92,0.00021917,2]
[388788541,1759361455768,-1983.31,0.00021917,2]
[388788542,1759361455778,-500.0,0.00021917,2]
[388788543,1759361455787,-5836.14,0.00021917,2]
[388788544,1759361455796,-500.0,0.00021917,2]
[388788545,1759361455805,-2299.97,0.00021917,2]
[388788546,1759361455815,-500.0,0.00021917,2]
[388788547,1759361455824,-500.0,0.00021917,2]
[388788548,1759361455833,-759.16,0.00021917,2]
[388788549,1759361455842,-2539.61,0.00021917,2]
[388788550,1759361455851,-500.0,0.00021917,2]
[388788551,1759361455860,-665.2,0.00021917,2]
[388788552,1759361455869,-612.38,0.00021917,2]
[388788553,1759361455878,-500.0,0.00021917,2]
[388788554,1759361455887,-2631.11,0.00021917,2]
[388788555,1759361455897,-151.0,0.00021917,2]
[388788556,1759361455910,-151.0,0.00021917,2]
[388788557,1759361455919,-401.43328532,0.00021917,2]
[388788558,1759361455928,-151.0,0.00021917,2]
[388788559,1759361455938,-500.3165239,0.00021917,2]
[388788560,1759361455947,-609.42,0.00021917,2]
[388788561,1759361455956,-151.0,0.00021917,2]
[388788562,1759361455967,-151.0,0.00021917,2]
[388788563,1759361455976,-1510.11,0.00021917,2]
[388788564,1759361455985,-500.0,0.00021917,2]
[388788565,1759361455995,-500.0,0.00021917,2]
[388788566,1759361456005,-500.0,0.00021917,2]
[388788567,1759361456014,-151.0,0.00021917,2]
[388788568,1759361456024,-151.0,0.00021917,2]
[388788569,1759361456034,-151.0,0.00021917,2]
[388788570,1759361456044,-3480.57,0.00021917,2]
[388788571,1759361456053,-500.0,0.00021917,2]
[388788572,1759361456063,-151.0,0.00021917,2]
[388788573,1759361456078,-500.0,0.00021917,2]
[388788574,1759361456088,-543.51,0.00021917,2]
[388788575,1759361456099,-500.0,0.00021917,2]
[388788576,1759361456110,-568.27,0.00021917,2]
[388788577,1759361456120,-568.27,0.00021917,2]
[388788578,1759361456129,-500.0,0.00021917,2]
[388788579,1759361456139,-500.0,0.00021917,2]
[388788580,1759361456149,-500.0,0.00021917,2]
[388788581,1759361456160,-1286.79,0.00021917,2]
[388788582,1759361456171,-2072.47,0.00021917,2]
[388788583,1759361456181,-202.84026,0.00021917,2]
[388788584,1759361456192,-202.84026,0.00021917,2]
[388788585,1759361456201,-840.83,0.00021917,2]
[388788586,1759361456211,-202.84026,0.00021917,2]
[388788587,1759361456221,-5469.11,0.00021917,2]
[388788588,1759361456231,-202.84026,0.00021917,2]
[388788589,1759361456241,-202.84026,0.00021917,2]
[388788590,1759361456250,-500.0,0.00021917,2]
[388788591,1759361456260,-202.84026,0.00021917,2]
[388788592,1759361456270,-202.84026,0.00021917,2]
[388788593,1759361456280,-500.0,0.00021917,2]
[388788594,1759361456289,-202.84026,0.00021917,2]
[388788595,1759361456300,-513.96,0.00021917,2]
[388788596,1759361456309,-202.84026,0.00021917,2]
[388788597,1759361456319,-500.0,0.00021917,2]
[388788598,1759361456329,-500.0,0.00021917,2]
[388788599,1759361456339,-1011.19,0.00021917,2]
[388788600,1759361456349,-939.75,0.00021917,2]
[388788601,1759361456358,-400.0,0.00021917,2]
[388788602,1759361456368,-6161.32,0.00021917,2]
[388788603,1759361456378,-500.0,0.00021917,2]
[388788604,1759361456387,-500.0,0.00021917,2]
[388788605,1759361456397,-2303.33,0.00021917,2]
[388788606,1759361456407,-500.0,0.00021917,2]
[388788607,1759361456417,-500.0,0.00021917,2]
[388788608,1759361456426,-500.0,0.00021917,2]
[388788609,1759361456435,-2194.42,0.00021917,2]
[388788610,1759361456445,-2156.54,0.00021917,2]
[388788611,1759361456454,-573.96,0.00021917,2]
[388788612,1759361456464,-1080.9,0.00021917,2]
[388788613,1759361456474,-500.0,0.00021917,2]
[388788614,1759361456488,-500.0,0.00021917,2]
[388788615,1759361456498,-151.0,0.00021917,2]
[388788616,1759361456508,-151.0,0.00021917,2]
[388788617,1759361456517,-151.0,0.00021917,2]
[388788618,1759361456527,-151.0,0.00021917,2]
[388788619,1759361456537,-151.0,0.00021917,2]
[388788620,1759361456547,-850.19,0.00021917,2]
[388788621,1759361456557,-500.0,0.00021917,2]
[388788622,1759361456568,-894.78,0.00021917,2]
[388788623,1759361456578,-500.0,0.00021917,2]
[388788624,1759361456587,-500.0,0.00021917,2]
[388788625,1759361456597,-151.0,0.00021917,2]
[388788626,1759361456607,-269.13388566,0.00021917,2]
[388788627,1759361456617,-23437.27,0.00021917,2]
[388788628,1759361456627,-151.0,0.00021917,2]
[388788629,1759361456636,-151.0,0.00021917,2]
[388788630,1759361456645,-746.02,0.00021917,2]
[388788631,1759361456655,-151.0,0.00021917,2]
[388788632,1759361456665,-2026.75,0.00021917,2]
[388788633,1759361456674,-1623.92,0.00021917,2]
[388788634,1759361456684,-1227.18,0.00021917,2]
[388788635,1759361456694,-151.0,0.00021917,2]
[388788636,1759361456703,-151.0,0.00021917,2]
[388788637,1759361456717,-500.0,0.00021917,2]
[388788638,1759361456726,-5827.61,0.00021917,2]
[388788639,1759361456736,-584.55,0.00021917,2]
[388788640,1759361456746,-284.766161,0.00021917,2]
[388788641,1759361456756,-344.32842375,0.00021917,2]
[388788642,1759361456765,-500.0,0.00021917,2]
[388788643,1759361456775,-160.0,0.00021917,2]
[388788644,1759361456785,-151.0,0.00021917,2]
[388788645,1759361456796,-151.0,0.00021917,2]
[388788646,1759361456806,-160.0,0.00021917,2]
[388788647,1759361456815,-160.0,0.00021917,2]
[388788648,1759361456824,-160.0,0.00021917,2]
[388788649,1759361456834,-160.0,0.00021917,2]
[388788650,1759361456843,-160.0,0.00021917,2]
[388788651,1759361456853,-160.0,0.00021917,2]
[388788652,1759361456863,-160.0,0.00021917,2]
[388788653,1759361456872,-160.0,0.00021917,2]
[388788654,1759361456881,-500.0,0.00021917,2]
[388788655,1759361456890,-160.0,0.00021917,2]
[388788656,1759361456900,-151.0,0.00021917,2]
[388788657,1759361456915,-160.0,0.00021917,2]
[388788658,1759361456924,-160.0,0.00021917,2]
[388788659,1759361456934,-160.0,0.00021917,2]
[388788660,1759361456947,-500.0,0.00021917,2]
[388788661,1759361456957,-160.0,0.00021917,2]
[388788662,1759361456966,-160.0,0.00021917,2]
[388788663,1759361456976,-787.22,0.00021917,2]
[388788664,1759361456987,-160.0,0.00021917,2]
[388788665,1759361456997,-160.0,0.00021917,2]
[388788666,1759361457006,-500.0,0.00021917,2]
[388788667,1759361457016,-160.0,0.00021917,2]
[388788668,1759361457025,-1881.78,0.00021917,2]
[388788669,1759361457033,-2496.22,0.00021917,2]
[388788670,1759361457042,-160.0,0.00021917,2]
[388788671,1759361457051,-500.0,0.00021917,2]
[388788672,1759361457060,-2231.51,0.00021917,2]